Cogmind - Beta 14 @@@ ROGUE MODE // 2024.08.10 @ 18:41:41 Player: Infomantis Result: Destroyed by Y-45 Defender with Beam Rifle Performance ------------- Evolutions (0) 0 Regions Visited (3) 600 Robots Destroyed (27) 135 Value Destroyed (731) 731 Prototype IDs (0) 0 Alien Tech Used (0) 0 Bonus (0) 0 TOTAL SCORE: 1466 Bonus ------- None Cogmind --------- Core Integrity 0/250 Matter 300/300 Energy 198/200 System Corruption 4% Temperature Cool (9) Movement Rolling (129) Ox2 Location -9/Recycling Parts ------- > --- POWER (1) -------- Subdweller Power Source > --- PROPULSION (2) --- Compact Wheel Subdweller Monowheel > --- UTILITY (2) ------ Huge Storage Unit > --- WEAPON (2) ------- Subdweller Beam Cannon Subdweller Beam Cannon > --- INVENTORY (25) --- Light Treads Light Treads Compact Wheel High-capacity Storage Unit Subdweller Optics Light Armor Plating Scrap Shield Subdweller Shrapnel Launcher Multitool SUBCON Basin (Full) Peak State ------------ > --- POWER ------------ Subdweller Power Source > --- PROPULSION ------- Subdweller Monowheel Subdweller Monowheel > --- UTILITY ---------- High-capacity Storage Unit Light Armor Plating > --- WEAPON ----------- Subdweller Beam Cannon Subdweller Beam Cannon > --- INVENTORY -------- Subdweller Optics Scrap Shield Subdweller Shrapnel Launcher Multitool SUBCON Basin [Rating: 31] Favorites ----------- Power Ion Engine Engine Ion Engine Propulsion Light Treads Treads Light Treads Wheel Subdweller Monowheel Utility Seismic Detector Device Seismic Detector Storage High-capacity Storage Unit Protection Light Armor Plating Weapon Subdweller Beam Cannon Energy Gun Subdweller Laser Energy Cannon Subdweller Beam Cannon Ballistic Gun Light Assault Rifle Special Weapon Mining Laser Build | -11 -10 -10 -9 ------- Run | Yrd Mat Sub Rec Slots Evolved . | . . . . Power . | . . . . Propulsion . | . . . . Utility . | . . . . Weapon . | . . . . Parts Attached 48 | 7 8 26 7 Power 7 | 1 2 4 . Engine 7 | 1 2 4 . Core . | . . . . Reactor . | . . . . Propulsion 15 | 2 1 7 5 Treads 8 | 2 1 3 2 Leg . | . . . . Wheel 7 | . . 4 3 Hover . | . . . . Flight . | . . . . Utility 8 | 2 1 3 2 Device 2 | 1 . 1 . Storage 4 | 1 1 1 1 Processor . | . . . . Hackware . | . . . . Protection 2 | . . 1 1 Artifact . | . . . . Weapon 18 | 2 4 12 . Energy Gun 3 | . . 3 . Energy Cannon 2 | . . 2 . Ballistic Gun 10 | 2 2 6 . Ballistic Cannon . | . . . . Launcher . | . . . . Special Weapon 3 | . 2 1 . Impact Weapon . | . . . . Slashing Weapon . | . . . . Piercing Weapon . | . . . . Special Melee Weapon . | . . . . Unidentified Prototypes . | . . . . Parts Lost 6 | . . 5 1 Power 1 | . . 1 . Propulsion 2 | . . 2 . Utility 1 | . . . 1 Weapon 2 | . . 2 . Highest Loss Streak 3 | . . 3 1 To Critical Strikes . | . . . . Average Slot Usage (%) 99 | . 99 99 100 Engine 14 | . 14 14 14 Treads 22 | . 28 24 8 Wheel 5 | . . 3 19 Device 11 | . 14 13 . Storage 14 | . 14 14 14 Protection 2 | . . . 14 Energy Gun 2 | . . 4 . Energy Cannon 7 | . . 5 28 Ballistic Gun 17 | . 27 17 . Peak Build Rating 31 | 8 8 31 31 Average Rating 13 | 6 7 12 29 On Entrance 11 | . 7 8 31 Naked Turns . | . . . . Heaviest Build 108 | 14 29 64 108 Greatest Support 40 | 40 40 40 40 Greatest Overweight (x) 6 | . . 2 6 Average Overweight (x) 1 | . . 1 3 Largest Inventory Capacity 25 | 8 15 20 25 Average Capacity 17 | 7 12 19 22 Most Carried 25 | 8 15 20 25 Average Carried 16 | 3 10 18 21 Final Capacity 25 | 8 15 20 25 Final Carried 25 | 7 15 20 25 Class Distribution -------------------- 59% | Mutant 40% | Scavenger-Mutant Dominant Class ---------------- Mutant | -10/Materials Mutant | -10/Subcaves Scavenger-Mutant | -9/Recycling Resources | -11 -10 -10 -9 ----------- Run | Yrd Mat Sub Rec Matter Collected 1116 | 326 304 393 93 Remotely . | . . . . Salvage Created 1169 | 110 201 542 316 Parts 73 | 11 14 30 18 Haulers Intercepted . | . . . . Recyclers Shooed 2 | . 1 . 1 Parts Field Recycled . | . . . . Retrieved Matter . | . . . . Parts Self-Destructed 14 | . . 14 . Prevented . | . . . . Kills | -11 -10 -10 -9 ------- Run | Yrd Mat Sub Rec Combat Hostiles Destroyed 18 | . 3 13 2 Guns 15 | . 3 12 . Cannons 3 | . . 1 2 Classes Destroyed 8 | 2 2 4 . Tunneler 3 | 3 . . . Recycler 5 | 1 1 . 3 Watcher 1 | . 1 . . Swarmer 2 | . . 2 . Grunt 4 | . 3 1 . Sentry 3 | . . 1 2 Artisan 1 | . . 1 . Subdweller 9 | . . 9 . Best Kill Streak 2 | 2 1 2 2 Combat Bots Only 2 | . 1 2 1 Max Kills in Single Turn 1 | 1 1 1 1 Gunslinging . | . . . . Exploded . | . . . . Melee . | . . . . Uniques/NPCs Destroyed . | . . . . Combat | -11 -10 -10 -9 -------- Run | Yrd Mat Sub Rec Hostile Shots Fired 84 | . 15 61 8 Missed 24 | . 4 19 1 Damage Taken 1275 | . 152 989 134 Core 251 | . 14 193 44 Absorbed by Shields . | . . . . Core Remaining (%) 100 | 100 . . . Volleys Fired 125 | 14 25 77 9 Largest 2 | 2 2 2 2 Hottest 160 | 40 100 140 160 Shots Fired 203 | 28 48 113 14 Gun 173 | 28 46 99 . Cannon 26 | . . 12 14 Launcher . | . . . . Special 4 | . 2 2 . Kinetic 123 | 28 46 49 . Thermal 76 | . 2 60 14 Explosive . | . . . . Electromagnetic 4 | . . 4 . Robot Hit Streak 35 | 5 6 25 35 Robot Miss Streak 4 | 2 3 4 . Penetration Max . | . . . . Secondary Targets . | . . . . Shots Hit Robots 121 | 18 29 64 10 Core Hits 50 | 6 14 25 5 Critical Kills 1 | . . 1 . Critical Parts Destroyed 1 | . 1 . . Critical Strikes 2 | . 1 1 . Destroy 2 | . 1 1 . Melee Attacks . | . . . . Impact . | . . . . Slashing . | . . . . Piercing . | . . . . Sneak Attacks . | . . . . Combat Hostiles . | . . . . Follow-up Attacks . | . . . . Damage Inflicted 1888 | 176 305 1140 267 Guns 1426 | 176 305 945 . Cannons 457 | . . 195 262 Explosions . | . . . . Melee . | . . . . Ramming 5 | . . . 5 Kinetic 1018 | 176 305 537 . Thermal 837 | . . 575 262 Explosive . | . . . . Electromagnetic 28 | . . 28 . Impact . | . . . . Slashing . | . . . . Piercing . | . . . . Highest Corruption 4 | . . 4 4 Average Corruption 4 | . . 4 4 Corruption Purged . | . . . . Corruption Blocked . | . . . . Effects 33 | . . 15 18 Message Errors 8 | . . 4 4 Matter Fused 4 | . . 2 2 Heat Flow Errors 5 | . . 3 2 Energy Discharges 6 | . . 2 4 Data Loss (minor) 5 | . . . 5 Data Loss (major) 2 | . . 2 . Misfires 1 | . . 1 . Alerts 2 | . . 1 1 Overload Shots . | . . . . Overflow Damage 1 | . . . 1 Projectiles 1 | . . . 1 Explosions . | . . . . Melee . | . . . . Knockbacks . | . . . . Impact . | . . . . Kinetic . | . . . . Secondary . | . . . . Self-Inflicted Damage 2 | . . . 2 Shots . | . . . . Rammed 1 | . . . 1 Targets Rammed 1 | . . . 1 Kicked . | . . . . Crushed . | . . . . Highest Temperature 268 | . 36 259 268 Average Temperature 65 | . 12 64 86 Received Heat Transfer 605 | . 102 476 27 Siege Activations . | . . . . Robots Corrupted . | . . . . Combat Hostiles . | . . . . Parts Fried . | . . . . Impact Corruptions . | . . . . Robots Melted . | . . . . Combat Hostiles . | . . . . Parts Melted 2 | . . 1 1 Heat Transferred 1104 | . . 734 370 Parts Sabotaged . | . . . . Parts Stolen . | . . . . Parts Stripped . | . . . . Power Chain Reactions . | . . . . Alert | -11 -10 -10 -9 ------- Run | Yrd Mat Sub Rec Peak Influence 171 | 20 80 . 171 Initial 13 | . 13 . . Average 26 | 9 18 . 41 Maximum Alert Level . | . . . . Low Security (%) 100 | 100 100 . 100 Level 1 . | . . . . Level 2 . | . . . . Level 3 . | . . . . Level 4 . | . . . . Level 5 . | . . . . High Security . | . . . . Max Security . | . . . . Squads Dispatched 1 | . 1 . . Investigation 1 | . 1 . . Extermination . | . . . . Reinforcement . | . . . . Assault . | . . . . Garrison . | . . . . Intercept . | . . . . Searches Triggered . | . . . . Construction Impeded . | . . . . Haulers Reinforced . | . . . . Active Scanning Responses . | . . . . Cargo Convoy Interrupts . | . . . . Stealth | -11 -10 -10 -9 --------- Run | Yrd Mat Sub Rec Distress Signals 3 | . 3 . . Communications Jammed . | . . . . Distress Signals . | . . . . Times Spotted 34 | . 12 16 6 Peak Tracking Total 6 | . 3 2 6 Tactical Retreats 2 | . 1 1 . Traps | -11 -10 -10 -9 ------- Run | Yrd Mat Sub Rec Traps Triggered 1 | . 1 . . Indirectly . | . . . . Trap Hack Attempts . | . . . . Triggered . | . . . . Disarmed . | . . . . Reprogrammed . | . . . . Reused . | . . . . Traps Extracted . | . . . . Installed . | . . . . Triggered . | . . . . Most Traps Carried 1 | . . 1 . Machines | -11 -10 -10 -9 ---------- Run | Yrd Mat Sub Rec Machines Disabled . | . . . . Max in Single Turn . | . . . . Machines Repaired . | . . . . Machines Dismantled . | . . . . Machines Sabotaged . | . . . . Overloaded Fab Kills . | . . . . Hacking | -11 -10 -10 -9 --------- Run | Yrd Mat Sub Rec Machines Accessed 23 | . 7 3 13 Terminals 12 | . 7 . 5 Fabricators . | . . . . Repair Stations . | . . . . Recycling Units 8 | . . . 8 Scanalyzers . | . . . . Garrison Access . | . . . . Total Hacks 54 | . 25 6 23 Successful 40 | . 19 6 15 Failed 13 | . 6 . 7 Catastrophic . | . . . . Database Lockouts 1 | . . . 1 Manual 36 | . 16 . 20 Terminals 40 | . 25 . 15 Fabricators . | . . . . Repair Stations . | . . . . Recycling Units 8 | . . . 8 Scanalyzers . | . . . . Garrison Access . | . . . . Terminal Hacks 15 | . 8 6 1 Record 4 | . . 4 . Part Schematic 1 | . . . 1 Open Door 1 | . . 1 . Emergency Access Points 1 | . 1 . . Terminal Index 1 | . 1 . . Unreport Threat 1 | . 1 . . Security Status 1 | . 1 . . Recall Investigation 1 | . 1 . . Hauler Manifests 1 | . 1 . . Zone Layout 2 | . 2 . . Release Object 1 | . . 1 . Fabricator Hacks . | . . . . Repair Station Hacks . | . . . . Recycling Unit Hacks . | . . . . Scanalyzer . | . . . . Garrison Access Hacks . | . . . . Unauthorized Hacks 25 | . 11 . 14 Terminals 17 | . 11 . 6 Assimilate 2 | . 2 . . Botnet 3 | . 2 . 1 Operators 1 | . 1 . . Skim 11 | . 6 . 5 Fabricators . | . . . . Repair Stations . | . . . . Recycling Units 8 | . . . 8 Tunnel 8 | . . . 8 Scanalyzers . | . . . . Garrison Access . | . . . . Data Cores Recovered . | . . . . Used . | . . . . Hacking Detections 10 | . 6 . 4 Full Trace Events 1 | . 1 . . Feedback Events . | . . . . Feedback Blocked . | . . . . Robot Schematics Acquired . | . . . . Robots Built . | . . . . Authchips . | . . . . Time . | . . . . Total Robot Build Rating . | . . . . Part Schematics Acquired 1 | . . . 1 Parts Built . | . . . . Authchips . | . . . . Time . | . . . . Total Part Build Rating . | . . . . Parts Repaired . | . . . . Time . | . . . . Parts Recycled . | . . . . Recycled Matter . | . . . . Retrieved Matter . | . . . . Retrieved Components . | . . . . Parts Scanalyzed . | . . . . Part Schematics Acquired . | . . . . Parts Damaged . | . . . . Bothacking | -11 -10 -10 -9 ------------ Run | Yrd Mat Sub Rec Used RIF Installer . | . . . . Robots Hacked . | . . . . Non-combat . | . . . . Combat . | . . . . Robot Hacks Applied . | . . . . Relay Couplers Released . | . . . . Fabnet Peak Effective % . | . . . . Robots Rewired . | . . . . Allies Hacked . | . . . . Hacks Repelled . | . . . . Allies | -11 -10 -10 -9 -------- Run | Yrd Mat Sub Rec Total Allies 1 | . 1 . . Largest Group 1 | . 1 1 1 Highest-Rated Group 10 | . 10 10 10 Highest-Rated Ally 10 | . 10 10 10 Total Orders 4 | . . 2 2 STAY 2 | . . 1 1 FOLLOW 2 | . . 1 1 Ally Attacks . | . . . . Total Damage . | . . . . Kills . | . . . . Allies Corrupted . | . . . . Allies Melted . | . . . . Intel | -11 -10 -10 -9 ------- Run | Yrd Mat Sub Rec Robot Analysis Total . | . . . . Derelict Logs Recovered 1 | . . 1 . Drone Launches . | . . . . Drone Recoveries . | . . . . Exploration | -11 -10 -10 -9 ------------- Run | Yrd Mat Sub Rec Turns Passed 5933 | 209 1287 3579 858 Spaces Moved 3024 | 99 641 1762 522 Core 6 | 6 . . . Treads 1904 | 93 641 1170 . Legs . | . . . . Wheels 1114 | . . 592 522 Hover . | . . . . Flight . | . . . . Fastest Speed 50 | 50 160 120 117 Average Speed 173 | 153 160 184 156 Slowest Speed 240 | 160 160 240 190 Overloaded Moves . | . . . . Propulsion Burnouts . | . . . . Robots Hopped . | . . . . Cave-ins Triggered 1 | . . 1 . Exploration Rate (%) 52 | 6 65 63 77 Regions Visited 3 Branch Regions 2 Pre-discovered Areas 10 | . 1 . 9 Known Exits Taken 2 | . 1 1 . Unknown Exits Taken 1 | 1 . . . Scrap Searched 7 | . . 7 . Spaces Dug 10 | . 1 9 . Terrain Destroyed 15 | . 1 11 3 Melee . | . . . . Projectile 15 | . 1 11 3 AOE . | . . . . Terrain Rammed . | . . . . Walls Destroyed . | . . . . Machines Disabled . | . . . . Actions | -11 -10 -10 -9 --------- Run | Yrd Mat Sub Rec Total 3520 | 128 858 1986 548 Wait 220 | . 165 53 2 Move 3021 | 98 640 1761 522 Hop . | . . . . Pick Up 53 | 8 13 29 3 Fast Attach 14 | 7 3 1 3 Attach 7 | . . 7 . Detach 2 | . . 1 1 Swap 27 | . 5 18 4 Drop 50 | 1 7 39 3 Fire 125 | 14 25 77 9 Melee . | . . . . Ram 1 | . . . 1 Kick . | . . . . Crush . | . . . . Escape Stasis . | . . . . Rewire . | . . . . Trap . | . . . . Miscellaneous . | . . . . Route ------- -11/Scrapyard -10/Materials (discovered 5 exits: *Mat x2 / *Min x2 / *Sub) -10/Subcaves (discovered 2 exits: [*Mat] / *Rec) -9/Recycling History --------- Turn | Location | Event 6 | -11/Scrapyard | Discovered new exit (range 14) 210 | -11/Scrapyard | Entered Materials 308 | -10/Materials | Build established: Mutant 355 | -10/Materials | Discovered new exit (range 15) 948 | -10/Materials | Discovered new exit (range 14) 1153 | -10/Materials | Discovered new exit (range 11) 1259 | -10/Materials | Identified exit to Materials 1259 | -10/Materials | Identified exit to Subcaves 1313 | -10/Materials | Learned Storage emergency access door positions 1356 | -10/Materials | Identified exit to Mines 1388 | -10/Materials | Learned 4 Recycling zone layouts 1408 | -10/Materials | Learned location of Mines (-10) 1482 | -10/Materials | Learned Materials stockpile data 1497 | -10/Materials | Entered Subcaves 1497 | -10/Subcaves | Accompanied by 1 ally 1529 | -10/Subcaves | Identified exit to Recycling 2133 | -10/Subcaves | Disturbed a concealed Subdweller 2506 | -10/Subcaves | Disturbed a concealed Subdweller 3163 | -10/Subcaves | Shifting Twisted Machinery released Sub. Monowheel 3191 | -10/Subcaves | Shifting Twisted Machinery released Flamer 3382 | -10/Subcaves | Visited Clippyterm 3390 | -10/Subcaves | Learned 40 Factory zone layouts 3733 | -10/Subcaves | Lost 3 parts (1p1n1w) 3750 | -10/Subcaves | Discovered new exit (range 8) 3915 | -10/Subcaves | Build established: Scavenger-Mutant 4089 | -10/Subcaves | Shifting Twisted Machinery released Sub. Beam Cannon 4119 | -10/Subcaves | Shifting Twisted Machinery released Scrap Shield 4266 | -10/Subcaves | Ambushed by Subdweller buried in earth 4275 | -10/Subcaves | Crushed by falling debris 4275 | -10/Subcaves | Core integrity fell below 50% 4275 | -10/Subcaves | Core integrity fell below 20% 4317 | -10/Subcaves | A swath of the cavern ceiling suddenly collapsed 5028 | -10/Subcaves | Found SUBCON Basin 5076 | -10/Subcaves | Entered Recycling 5076 | -9/Recycling | Accompanied by 1 ally 5792 | -9/Recycling | Learned Materials stockpile data 5821 | -9/Recycling | Learned Materials emergency access door positions 5840 | -9/Recycling | Learned Storage trap positions 5848 | -9/Recycling | Learned 2 Materials zone layouts 5888 | -9/Recycling | Learned Storage security intel 5934 | -9/Recycling | Destroyed by Y-45 Defender with Beam Rifle Last Messages --------------- 05888_ >> SKIM: Data seek routine purged. 05893_ Acquired Com. Wheel. 05893_ U-05 Engineer builds a Door. 05896_ Acquired Sub. Monowheel. 05897_ Acquired 20 matter. 05902_ Acquired 10 matter. 05902_ R-06 Scavenger collects Sml. Storage Unit. 05904_ R-06 Scavenger collects Lgt. Armor Plating. 05905_ R-06 Scavenger collects Com. Wheel. 05930_ D-53 Grenadier springs to life. 05930_ Y-45 Defender springs to life. 05931_ Slammed into Y-45 Defender. 05931_ P-60 Hacker springs to life. 05931_ I-25 Savior springs to life. 05932_ Y-45 Defender destroyed. 05932_ Med. Armor Plating destroyed. 05932_ I-25 Savior destroyed. 05932_ K-01 Serf destroyed. 05932_ P-60 Hacker destroyed. 05932_ K-01 Serf destroyed. Map ----- +----------------------------------------------------+ | | | | | | | | | | | | | | | ???????????????????######?????????????? | | ???????????????????#"""""?????????????? | | ???????????????????# " X ?????????????? | | ?????????????####### ?????????????? | | ????????????## + ?????????????? | | ????????????# ##### ?????????????? | | ????????????## #???# ?????????????? | | ?????????????# #???#" " ?????????????? | | ?????????????# #???#"""""?????????????? | | ??????????###############?????????????? | | ??????????# #???????????????????? | | ??????????# #???????????????????? | | ??????????# #???????????????##### | | ??????????# #???????????????# | | ??????????####+####???????????????# | | ?????????????# #??????????????????# | | ?????????????# #??????????????????# | | ?????????##### ###????????????????# | | ?????????# @ ###??????????????# | | ?????????# %!% #??????????????# | | ???####### o *Y= /#??????????????# | | ???# + d%%aY #??????????????# | | ???# # !%[ d #??????????????# | | ???# #ua %* a#??????????????# | | ?### +% d #??????????????##### | | ?#"" ### i [ #??????????????????# | | ?#"Y #?# a i#??????????????????# | | ?#"" #?###########??????????????????# | | ?### #######????????????????????????# | | ?### #???????????????????????## | | ?#"" #????####???????????????## | | ?#"Y ###### #???????????????# | | ?#"" #???????######### | | ?### ###### #???????# """ | | ?#"" #?????# #????????# "T" | | ?#"Y #?????# ####?????# | | ?#"" ##+##+#####?# #?????# | | ?### # #?# #?????# | | ?### # =! #?# ###???# | | ?#"" # *% #?# ###???# | | ?#"Y # * #?# %#????# | | ?#"" + % ### ##????# | | ?### # + #?????##+###### | +----------------------------------------------------+ Best States ------------- Heat Dissipation 25 Energy Generation 15 Energy Capacity 250 Matter Stores 300 Matter Capacity 300 Sight Range 16 Terrain Scan Density 10 Armor Coverage 225 Evasion (%) 40 Recoil Reduction 2 Item Schematics ----------------- Hcp. Storage Unit | -9/Recycling | Hacked Robot Schematics ------------------ None Fabricated ------------ Nothing Alien Tech Used ----------------- None Achievements -------------- None Challenges ------------ None Game ------ Seed CombatRefineryNukerbomber Manual? 0 Play Time 00:36:48 Cumulative 415.9 hours Start 2024.08.10 @ 18:04:33 End 2024.08.10 @ 18:41:41 Sessions 1 Manual Loads 0 Difficulty Rogue Special Mode None Game No. 273 Rogue 249 Adventurer 6 Explorer 18 Win Type - Total 31 Types 21/0/5/2/0/1/1/1/0 Lore% 89 Gallery% 92 Achievement% 80 Wizard Run 0 Options --------- Layout 1 ASCII 0 Keyboard 0 Movement Numpad Keybinds 0 Fullscreen 1 Font 16/TamsynBold Map View 55x38 Zoom Use 0% Tactical HUD 1 Map Filters NONE Filters NONE Steam 1 RUN: 3985f086-d1f9-44e2-a74e-fbae90cebf7c